[Event "*** Titled Tuesday Blitz"]
[Site "Chess.com"]
[Date "2021.04.20"]
[Round "6"]
[White "dropstoneDP"]
[Black "enriquetejedor"]
[Result "1-0"]
[WhiteElo "2931"]
[BlackElo "2632"]
[TimeControl "180+1"]
[EndTime "11:04:25 PDT"]
[Termination "dropstoneDP won on time"]

1. e4 {[%clk 0:03:00.2]} 1... c5 {[%clk 0:02:54.3]} 2. h3 {[%clk 0:02:58.7]}
2... g6 {[%clk 0:02:52.9]} 3. Nf3 {[%clk 0:02:53.6]} 3... Bg7 {[%clk 0:02:53.3]}
4. Bc4 {[%clk 0:02:53.8]} 4... Nc6 {[%clk 0:02:52.3]} 5. c3 {[%clk 0:02:53.4]}
5... e6 {[%clk 0:02:45.8]} 6. d4 {[%clk 0:02:48.1]} 6... cxd4 {[%clk 0:02:28.3]}
7. cxd4 {[%clk 0:02:49]} 7... d5 {[%clk 0:02:28.4]} 8. exd5 {[%clk 0:02:49.9]}
8... exd5 {[%clk 0:02:27.9]} 9. Bb3 {[%clk 0:02:50.5]} 9... Nge7 {[%clk
0:02:25.7]} 10. O-O {[%clk 0:02:50]} 10... O-O {[%clk 0:02:26.3]} 11. Nc3 {[%clk
0:02:49.9]} 11... Nf5 {[%clk 0:02:16.6]} 12. Bg5 {[%clk 0:02:48.3]} 12... Qa5
{[%clk 0:02:11.3]} 13. Nxd5 {[%clk 0:02:36.5]} 13... h6 {[%clk 0:01:53.1]} 14.
Bf6 {[%clk 0:02:34.1]} 14... Be6 {[%clk 0:01:07]} 15. Bxg7 {[%clk 0:02:33.4]}
15... Kxg7 {[%clk 0:01:06.1]} 16. Ne3 {[%clk 0:02:33.2]} 16... Bxb3 {[%clk
0:01:00.2]} 17. axb3 {[%clk 0:02:13.8]} 17... Qb5 {[%clk 0:00:56]} 18. d5 {[%clk
0:01:57.8]} 18... Nce7 {[%clk 0:00:47.5]} 19. Nd4 {[%clk 0:01:54.7]} 19... Qd7
{[%clk 0:00:27.1]} 20. Qg4 {[%clk 0:01:51]} 20... Rfd8 {[%clk 0:00:07.4]} 21.
Nexf5+ {[%clk 0:01:43.5]} 21... Nxf5 {[%clk 0:00:07.4]} 22. Nxf5+ {[%clk
0:01:43.8]} 22... Qxf5 {[%clk 0:00:08.1]} 23. Qxf5 {[%clk 0:01:44.3]} 23... gxf5
{[%clk 0:00:09]} 24. Rfd1 {[%clk 0:01:43.9]} 24... a6 {[%clk 0:00:06.2]} 25. Rd3
{[%clk 0:01:43.6]} 25... Rac8 {[%clk 0:00:03.2]} 26. Ra4 {[%clk 0:01:40.8]}
26... Rc1+ {[%clk 0:00:02.3]} 27. Kh2 {[%clk 0:01:41.4]} 27... Rc2 {[%clk
0:00:02.7]} 28. Rf4 {[%clk 0:01:42.1]} 28... Rxb2 {[%clk 0:00:02.1]} 29. Rxf5
{[%clk 0:01:42.8]} 29... Rd6 {[%clk 0:00:02.3]} 30. Rg3+ {[%clk 0:01:43.1]}
30... Rg6 {[%clk 0:00:02]} 31. Rgf3 {[%clk 0:01:43.8]} 31... f6 {[%clk
0:00:01.6]} 32. Rd3 {[%clk 0:01:44]} 32... Rg5 {[%clk 0:00:01.4]} 33. d6 {[%clk
0:01:40.4]} 33... Rxf5 {[%clk 0:00:01.2]} 34. d7 {[%clk 0:01:41.1]} 34... Rfxf2
{[%clk 0:00:01.6]} 35. Rg3+ {[%clk 0:01:41.8]} 35... Kf7 {[%clk 0:00:01.6]} 36.
d8=Q {[%clk 0:01:42.7]} 36... Rbd2 {[%clk 0:00:01.6]} 37. Qc7+ {[%clk
0:01:42.6]} 37... Ke6 {[%clk 0:00:02]} 38. Qxb7 {[%clk 0:01:43.1]} 38... Ra2
{[%clk 0:00:01.3]} 39. Qc6+ {[%clk 0:01:43]} 39... Ke7 {[%clk 0:00:01.1]} 40.
Re3+ {[%clk 0:01:43.1]} 40... Kf8 {[%clk 0:00:01.3]} 41. Qe8+ {[%clk 0:01:42.6]}
1-0

[Event "*** Titled Tuesday Blitz"]
[Site "Chess.com"]
[Date "2021.04.20"]
[Round "6"]
[White "Andreikka"]
[Black "frederiksvane"]
[Result "1/2-1/2"]
[WhiteElo "2869"]
[BlackElo "2759"]
[TimeControl "180+1"]
[EndTime "11:04:26 PDT"]
[Termination "Game drawn by repetition"]

1. d4 {[%clk 0:03:00.9]} 1... Nf6 {[%clk 0:02:59.9]} 2. Nc3 {[%clk 0:03:00.8]}
2... d5 {[%clk 0:02:58.4]} 3. Bf4 {[%clk 0:03:00.3]} 3... g6 {[%clk 0:02:49.7]}
4. e3 {[%clk 0:02:57.4]} 4... Bg7 {[%clk 0:02:49.3]} 5. h4 {[%clk 0:02:58]} 5...
c6 {[%clk 0:02:48.3]} 6. Be2 {[%clk 0:02:56.2]} 6... h5 {[%clk 0:02:47.5]} 7.
Nf3 {[%clk 0:02:56.5]} 7... Nbd7 {[%clk 0:02:43]} 8. Ne5 {[%clk 0:02:48.2]} 8...
Nxe5 {[%clk 0:02:42.6]} 9. Bxe5 {[%clk 0:02:47.9]} 9... Kf8 {[%clk 0:02:37]} 10.
Bd3 {[%clk 0:02:42]} 10... Ng4 {[%clk 0:02:31.9]} 11. Bxg7+ {[%clk 0:02:41.8]}
11... Kxg7 {[%clk 0:02:32.8]} 12. Qd2 {[%clk 0:02:42.7]} 12... e5 {[%clk
0:02:31.3]} 13. f3 {[%clk 0:02:42.8]} 13... exd4 {[%clk 0:02:25.4]} 14. exd4
{[%clk 0:02:43.7]} 14... Re8+ {[%clk 0:02:21]} 15. Ne2 {[%clk 0:02:44]} 15...
Ne3 {[%clk 0:02:20.3]} 16. Kf2 {[%clk 0:02:39.3]} 16... Bf5 {[%clk 0:02:12.6]}
17. Bxf5 {[%clk 0:02:22.2]} 17... Nxf5 {[%clk 0:02:13.5]} 18. Ng3 {[%clk
0:02:22.6]} 18... Nxg3 {[%clk 0:01:53.4]} 19. Kxg3 {[%clk 0:02:23.5]} 19... Qd6+
{[%clk 0:01:46.4]} 20. Kf2 {[%clk 0:02:22.4]} 20... Re6 {[%clk 0:01:44.5]} 21.
Rae1 {[%clk 0:02:22]} 21... Rae8 {[%clk 0:01:44.5]} 22. c3 {[%clk 0:02:22.6]}
22... Qe7 {[%clk 0:01:37]} 23. Rxe6 {[%clk 0:02:09.5]} 23... Qxe6 {[%clk
0:01:37.9]} 24. a4 {[%clk 0:02:02.9]} 24... a5 {[%clk 0:01:36.7]} 25. b4 {[%clk
0:02:02.3]} 25... b6 {[%clk 0:01:28.7]} 26. bxa5 {[%clk 0:01:55]} 26... bxa5
{[%clk 0:01:29.6]} 27. Rb1 {[%clk 0:01:48.5]} 27... Qe7 {[%clk 0:01:28.2]} 28.
Kg3 {[%clk 0:01:48.3]} 28... Qa3 {[%clk 0:01:17.9]} 29. Rb7 {[%clk 0:01:14.2]}
29... Re7 {[%clk 0:01:18]} 30. Rxe7 {[%clk 0:00:55.3]} 30... Qxe7 {[%clk
0:01:18.9]} 31. Qc1 {[%clk 0:00:45]} 31... Qe2 {[%clk 0:01:11]} 32. Kh2 {[%clk
0:00:43.8]} 32... Qc4 {[%clk 0:01:08]} 33. Qe3 {[%clk 0:00:32.2]} 33... Qxa4
{[%clk 0:01:05.5]} 34. Qe5+ {[%clk 0:00:31.7]} 34... Kg8 {[%clk 0:01:05.5]} 35.
Qe8+ {[%clk 0:00:31.4]} 35... Kg7 {[%clk 0:01:05.8]} 36. Qe5+ {[%clk 0:00:32]}
36... Kh7 {[%clk 0:01:04.8]} 37. Qe7 {[%clk 0:00:31.5]} 37... Kg8 {[%clk
0:01:04.3]} 38. Qe8+ {[%clk 0:00:31.6]} 38... Kg7 {[%clk 0:01:04.6]} 39. Qe5+
{[%clk 0:00:31.9]} 1/2-1/2

[Event "*** Titled Tuesday Blitz"]
[Site "Chess.com"]
[Date "2021.04.20"]
[Round "6"]
[White "fyall777"]
[Black "szachuspl"]
[Result "1-0"]
[WhiteElo "2333"]
[BlackElo "2525"]
[TimeControl "180+1"]
[EndTime "11:04:26 PDT"]
[Termination "fyall777 won by resignation"]

1. e4 {[%clk 0:02:23.3]} 1... c5 {[%clk 0:02:57.2]} 2. Nf3 {[%clk 0:02:22.6]}
2... e6 {[%clk 0:02:57.5]} 3. d4 {[%clk 0:02:21.8]} 3... cxd4 {[%clk 0:02:57.8]}
4. Nxd4 {[%clk 0:02:22.2]} 4... Nf6 {[%clk 0:02:58.1]} 5. Bd3 {[%clk 0:02:21.1]}
5... Nc6 {[%clk 0:02:58.2]} 6. Nxc6 {[%clk 0:02:20.9]} 6... bxc6 {[%clk
0:02:58.3]} 7. O-O {[%clk 0:02:21.1]} 7... d5 {[%clk 0:02:58.8]} 8. Nd2 {[%clk
0:02:21.3]} 8... Be7 {[%clk 0:02:58.9]} 9. c4 {[%clk 0:02:21.6]} 9... O-O {[%clk
0:02:57.7]} 10. Qc2 {[%clk 0:02:21.8]} 10... h6 {[%clk 0:02:55.4]} 11. b3 {[%clk
0:02:20.7]} 11... Bb7 {[%clk 0:02:55.3]} 12. Bb2 {[%clk 0:02:19.9]} 12... d4
{[%clk 0:02:54.5]} 13. c5 {[%clk 0:02:08.7]} 13... e5 {[%clk 0:02:54]} 14. b4
{[%clk 0:02:08]} 14... Nh5 {[%clk 0:02:51.9]} 15. Rfe1 {[%clk 0:02:00]} 15...
Bg5 {[%clk 0:02:49.3]} 16. Nc4 {[%clk 0:01:57.6]} 16... Qf6 {[%clk 0:02:42.9]}
17. Nd6 {[%clk 0:01:54.2]} 17... Bc8 {[%clk 0:02:41.7]} 18. Nxc8 {[%clk
0:01:52.7]} 18... Raxc8 {[%clk 0:02:42.6]} 19. g3 {[%clk 0:01:50.7]} 19... Qg6
{[%clk 0:02:28.5]} 20. Kh1 {[%clk 0:01:47]} 20... Be7 {[%clk 0:02:25.1]} 21. a4
{[%clk 0:01:41]} 21... a6 {[%clk 0:02:25.1]} 22. Qe2 {[%clk 0:01:38.8]} 22...
Rb8 {[%clk 0:02:23.6]} 23. Ba3 {[%clk 0:01:38.1]} 23... a5 {[%clk 0:02:09.5]}
24. b5 {[%clk 0:01:36.7]} 24... Nf6 {[%clk 0:02:07.5]} 25. Rab1 {[%clk
0:01:30.3]} 25... h5 {[%clk 0:02:05.5]} 26. bxc6 {[%clk 0:01:23.8]} 26... h4
{[%clk 0:02:01.1]} 27. Rxb8 {[%clk 0:01:20.9]} 27... Rxb8 {[%clk 0:02:00.6]} 28.
Bb5 {[%clk 0:01:21]} 28... Rc8 {[%clk 0:01:53.4]} 29. Qf3 {[%clk 0:01:20.1]}
29... Qh6 {[%clk 0:01:48.5]} 30. Qf5 {[%clk 0:01:18.1]} 30... Rc7 {[%clk
0:01:21.7]} 31. Qxe5 {[%clk 0:01:18]} 31... Bd8 {[%clk 0:01:22.2]} 32. Qf4
{[%clk 0:01:17.2]} 32... g5 {[%clk 0:01:20.2]} 33. Qf5 {[%clk 0:01:16.8]} 33...
g4 {[%clk 0:01:10.6]} 34. e5 {[%clk 0:01:15.9]} 34... Qd2 {[%clk 0:01:03.8]} 35.
Rg1 {[%clk 0:01:06.2]} 35... hxg3 {[%clk 0:00:44.8]} 36. exf6 {[%clk 0:00:58.9]}
36... Qxf2 {[%clk 0:00:37]} 37. Qxg4+ {[%clk 0:00:57.4]} 1-0

[Event "*** Titled Tuesday Blitz"]
[Site "Chess.com"]
[Date "2021.04.20"]
[Round "6"]
[White "ChessQueen"]
[Black "Flopezin"]
[Result "1-0"]
[WhiteElo "2696"]
[BlackElo "2341"]
[TimeControl "180+1"]
[EndTime "11:04:27 PDT"]
[Termination "ChessQueen won by resignation"]

1. e4 {[%clk 0:03:00.9]} 1... e5 {[%clk 0:03:00.3]} 2. Nf3 {[%clk 0:02:59.7]}
2... Nc6 {[%clk 0:03:00.8]} 3. Bb5 {[%clk 0:02:59.5]} 3... a6 {[%clk 0:03:01.3]}
4. Ba4 {[%clk 0:02:59.2]} 4... Nf6 {[%clk 0:03:01.2]} 5. d4 {[%clk 0:02:59.4]}
5... exd4 {[%clk 0:02:47]} 6. O-O {[%clk 0:02:59.1]} 6... Nxe4 {[%clk
0:02:16.8]} 7. Re1 {[%clk 0:02:43.7]} 7... d5 {[%clk 0:02:16.9]} 8. Nxd4 {[%clk
0:02:38.1]} 8... Bc5 {[%clk 0:01:43.2]} 9. Nxc6 {[%clk 0:01:47.2]} 9... Bxf2+
{[%clk 0:01:37.7]} 10. Kf1 {[%clk 0:01:41.1]} 10... Qf6 {[%clk 0:01:11.8]} 11.
Rxe4+ {[%clk 0:01:36.8]} 11... dxe4 {[%clk 0:01:10.7]} 12. Qd8+ {[%clk
0:01:36.7]} 12... Qxd8 {[%clk 0:01:09.7]} 13. Nxd8+ {[%clk 0:01:37.6]} 13...
Kxd8 {[%clk 0:01:07.9]} 14. Kxf2 {[%clk 0:01:36.6]} 14... Bf5 {[%clk 0:01:01.5]}
15. Nc3 {[%clk 0:01:32.6]} 15... c6 {[%clk 0:01:01]} 16. Bb3 {[%clk 0:01:32.2]}
16... Ke7 {[%clk 0:01:00.9]} 17. Be3 {[%clk 0:01:30.9]} 17... Rhd8 {[%clk
0:00:58.9]} 18. Bc5+ {[%clk 0:01:28.1]} 18... Kf6 {[%clk 0:00:55.9]} 19. Re1
{[%clk 0:01:27.2]} 19... Re8 {[%clk 0:00:54.6]} 20. Ne2 {[%clk 0:01:21.8]} 20...
Rad8 {[%clk 0:00:53.1]} 21. Ke3 {[%clk 0:01:17.1]} 21... g5 {[%clk 0:00:51.9]}
22. Rf1 {[%clk 0:01:11.5]} 22... Ke5 {[%clk 0:00:29.9]} 23. Bb6 {[%clk
0:01:01.7]} 23... Rd7 {[%clk 0:00:27.5]} 24. Bd4+ {[%clk 0:01:01.3]} 24... Rxd4
{[%clk 0:00:17.5]} 25. Nxd4 {[%clk 0:01:01]} 25... Bg6 {[%clk 0:00:18.1]} 26. g4
{[%clk 0:00:59.3]} 26... Rd8 {[%clk 0:00:18.1]} 27. Nf5 {[%clk 0:00:55.2]} 1-0

[Event "*** Titled Tuesday Blitz"]
[Site "Chess.com"]
[Date "2021.04.20"]
[Round "6"]
[White "barbara25"]
[Black "shnitez"]
[Result "0-1"]
[WhiteElo "2313"]
[BlackElo "2511"]
[TimeControl "180+1"]
[EndTime "11:04:27 PDT"]
[Termination "shnitez won by resignation"]

1. e4 {[%clk 0:03:00.9]} 1... c5 {[%clk 0:02:58.4]} 2. Nf3 {[%clk 0:03:00.5]}
2... e6 {[%clk 0:02:58.4]} 3. g3 {[%clk 0:02:59.8]} 3... b6 {[%clk 0:02:57.4]}
4. Bg2 {[%clk 0:02:59.8]} 4... Bb7 {[%clk 0:02:58]} 5. d3 {[%clk 0:03:00.1]}
5... d6 {[%clk 0:02:55.5]} 6. O-O {[%clk 0:02:58.2]} 6... Nf6 {[%clk 0:02:56]}
7. Re1 {[%clk 0:02:57]} 7... Be7 {[%clk 0:02:52.9]} 8. c3 {[%clk 0:02:55.5]}
8... Nc6 {[%clk 0:02:45.7]} 9. Nbd2 {[%clk 0:02:39.6]} 9... O-O {[%clk
0:02:43.8]} 10. Nf1 {[%clk 0:02:35.8]} 10... b5 {[%clk 0:02:43.3]} 11. h3 {[%clk
0:02:35]} 11... b4 {[%clk 0:02:39]} 12. g4 {[%clk 0:02:35.1]} 12... a5 {[%clk
0:02:36.7]} 13. Ng3 {[%clk 0:02:35.1]} 13... a4 {[%clk 0:02:35.8]} 14. d4 {[%clk
0:02:30.2]} 14... a3 {[%clk 0:01:50.1]} 15. cxb4 {[%clk 0:02:27.7]} 15... axb2
{[%clk 0:01:45.7]} 16. Bxb2 {[%clk 0:02:26.8]} 16... Nxb4 {[%clk 0:01:38.3]} 17.
dxc5 {[%clk 0:02:23.8]} 17... dxc5 {[%clk 0:01:39.2]} 18. g5 {[%clk 0:02:23.7]}
18... Nd7 {[%clk 0:01:32]} 19. Nh5 {[%clk 0:02:22.2]} 19... g6 {[%clk
0:01:26.6]} 20. Nf6+ {[%clk 0:02:10.6]} 20... Nxf6 {[%clk 0:01:19.3]} 21. gxf6
{[%clk 0:02:10.4]} 21... Bxf6 {[%clk 0:01:16.4]} 22. Qxd8 {[%clk 0:02:07.3]}
22... Bxd8 {[%clk 0:01:17.3]} 23. Rec1 {[%clk 0:02:02]} 23... Nd3 {[%clk
0:01:14]} 24. Rc2 {[%clk 0:02:01.6]} 24... Nxb2 {[%clk 0:01:14.1]} 25. Rxb2
{[%clk 0:02:01.7]} 25... Bxe4 {[%clk 0:01:09.6]} 26. Rc1 {[%clk 0:01:59.8]}
26... Be7 {[%clk 0:01:04.5]} 27. Ne5 {[%clk 0:01:58.8]} 27... Bxg2 {[%clk
0:00:56.4]} 28. Kxg2 {[%clk 0:01:59.7]} 28... Bf6 {[%clk 0:00:51.8]} 29. Re2
{[%clk 0:01:58]} 29... Bxe5 {[%clk 0:00:51]} 30. Rxe5 {[%clk 0:01:57.9]} 30...
Rxa2 {[%clk 0:00:50.6]} 31. Rcxc5 {[%clk 0:01:56.9]} 31... Ra7 {[%clk
0:00:43.5]} 32. Re3 {[%clk 0:01:56.7]} 32... Kg7 {[%clk 0:00:42.6]} 33. h4
{[%clk 0:01:56.8]} 33... Rd8 {[%clk 0:00:38.1]} 34. h5 {[%clk 0:01:56.7]} 34...
Rd5 {[%clk 0:00:36.1]} 35. Rxd5 {[%clk 0:01:55.2]} 35... exd5 {[%clk 0:00:37]}
36. hxg6 {[%clk 0:01:53.7]} 36... hxg6 {[%clk 0:00:34.7]} 37. Rd3 {[%clk
0:01:53.8]} 37... Rd7 {[%clk 0:00:34.1]} 38. Rd4 {[%clk 0:01:54.4]} 38... Kf6
{[%clk 0:00:34]} 39. Kf3 {[%clk 0:01:55]} 39... Ke5 {[%clk 0:00:34.3]} 40. Ke3
{[%clk 0:01:55.1]} 40... g5 {[%clk 0:00:26.9]} 41. Ra4 {[%clk 0:01:47.2]} 41...
Rb7 {[%clk 0:00:21.5]} 42. Ra3 {[%clk 0:01:45.2]} 42... f5 {[%clk 0:00:18]} 43.
f3 {[%clk 0:01:45.2]} 43... Rc7 {[%clk 0:00:17.3]} 44. Rb3 {[%clk 0:01:44.1]}
44... d4+ {[%clk 0:00:17.1]} 45. Kf2 {[%clk 0:01:43.2]} 45... Kf4 {[%clk
0:00:15.9]} 46. Rd3 {[%clk 0:01:39.1]} 46... Rc2+ {[%clk 0:00:14.7]} 47. Kf1
{[%clk 0:01:38]} 47... Rc3 {[%clk 0:00:14.5]} 0-1

[Event "*** Titled Tuesday Blitz"]
[Site "Chess.com"]
[Date "2021.04.20"]
[Round "6"]
[White "ChelsieMonica"]
[Black "MVM2008"]
[Result "0-1"]
[WhiteElo "2390"]
[BlackElo "2173"]
[TimeControl "180+1"]
[EndTime "11:04:27 PDT"]
[Termination "MVM2008 won by resignation"]

1. Nf3 {[%clk 0:02:57.2]} 1... Nc6 {[%clk 0:02:58.4]} 2. g3 {[%clk 0:02:53.2]}
2... d5 {[%clk 0:02:57.9]} 3. Bg2 {[%clk 0:02:54.1]} 3... e6 {[%clk 0:02:57.5]}
4. d3 {[%clk 0:02:55]} 4... Nf6 {[%clk 0:02:57.2]} 5. O-O {[%clk 0:02:55.9]}
5... Be7 {[%clk 0:02:57]} 6. c4 {[%clk 0:02:56.8]} 6... O-O {[%clk 0:02:56.4]}
7. cxd5 {[%clk 0:02:57.3]} 7... exd5 {[%clk 0:02:57.3]} 8. Nc3 {[%clk
0:02:57.9]} 8... h6 {[%clk 0:02:55.4]} 9. h3 {[%clk 0:02:58.1]} 9... Be6 {[%clk
0:02:50.2]} 10. d4 {[%clk 0:02:52.5]} 10... a6 {[%clk 0:02:48.3]} 11. Bf4 {[%clk
0:02:42.4]} 11... Bd6 {[%clk 0:02:43.5]} 12. Bxd6 {[%clk 0:02:41.5]} 12... Qxd6
{[%clk 0:02:44.4]} 13. Rc1 {[%clk 0:02:40.5]} 13... Na5 {[%clk 0:02:41.3]} 14.
b3 {[%clk 0:02:40]} 14... b6 {[%clk 0:02:37.2]} 15. Ne5 {[%clk 0:02:40.2]} 15...
c5 {[%clk 0:02:33.8]} 16. e4 {[%clk 0:02:24.2]} 16... dxe4 {[%clk 0:02:24.3]}
17. Nxe4 {[%clk 0:02:22.1]} 17... Nxe4 {[%clk 0:02:21.3]} 18. Bxe4 {[%clk
0:02:22]} 18... Rad8 {[%clk 0:02:20.6]} 19. Nf3 {[%clk 0:02:06.7]} 19... cxd4
{[%clk 0:02:09.2]} 20. h4 {[%clk 0:02:00.8]} 20... Bg4 {[%clk 0:01:40.6]} 21.
Qd3 {[%clk 0:01:54.7]} 21... f5 {[%clk 0:01:30.7]} 22. Nd2 {[%clk 0:01:29.1]}
22... fxe4 {[%clk 0:01:25.3]} 23. Qxe4 {[%clk 0:01:28.4]} 23... Bf5 {[%clk
0:01:22.6]} 24. Qe2 {[%clk 0:01:20.9]} 24... d3 {[%clk 0:01:20.6]} 25. Qf3
{[%clk 0:01:16.7]} 25... Bh3 {[%clk 0:01:19.2]} 26. Qh5 {[%clk 0:01:13.9]} 26...
Bxf1 {[%clk 0:01:16.9]} 27. Rxf1 {[%clk 0:01:14.8]} 27... Qd5 {[%clk 0:01:09.7]}
28. Qg6 {[%clk 0:01:13.1]} 28... Rd6 {[%clk 0:01:08.2]} 29. Qg4 {[%clk 0:01:06]}
29... Nc6 {[%clk 0:01:04]} 30. Nc4 {[%clk 0:00:56.3]} 30... Ne5 {[%clk
0:00:54.5]} 31. Nxe5 {[%clk 0:00:50.2]} 31... Qxe5 {[%clk 0:00:53.9]} 32. Qc4+
{[%clk 0:00:43.6]} 32... Qd5 {[%clk 0:00:50.3]} 33. Qxa6 {[%clk 0:00:41.2]}
33... d2 {[%clk 0:00:49.3]} 34. Rd1 {[%clk 0:00:40.9]} 34... Re8 {[%clk
0:00:43.4]} 0-1

[Event "*** Titled Tuesday Blitz"]
[Site "Chess.com"]
[Date "2021.04.20"]
[Round "6"]
[White "supertfc"]
[Black "canary2016"]
[Result "1-0"]
[WhiteElo "2360"]
[BlackElo "2022"]
[TimeControl "180+1"]
[EndTime "11:04:29 PDT"]
[Termination "supertfc won by checkmate"]

1. e4 {[%clk 0:03:00.9]} 1... c5 {[%clk 0:02:59.8]} 2. Nf3 {[%clk 0:02:59.8]}
2... d6 {[%clk 0:02:59.6]} 3. d4 {[%clk 0:02:58.8]} 3... cxd4 {[%clk 0:02:59.5]}
4. Nxd4 {[%clk 0:02:59.7]} 4... Nf6 {[%clk 0:02:59.5]} 5. Nc3 {[%clk 0:02:59.3]}
5... a6 {[%clk 0:02:59.3]} 6. Be2 {[%clk 0:02:58.6]} 6... e5 {[%clk 0:02:57.6]}
7. Nf3 {[%clk 0:02:59.1]} 7... Be7 {[%clk 0:02:54.6]} 8. Bg5 {[%clk 0:02:58.3]}
8... O-O {[%clk 0:02:51]} 9. Bxf6 {[%clk 0:02:54.3]} 9... Bxf6 {[%clk
0:02:50.6]} 10. a4 {[%clk 0:02:55.2]} 10... Be6 {[%clk 0:02:49.7]} 11. Nd5
{[%clk 0:02:53]} 11... Be7 {[%clk 0:02:46.4]} 12. Bc4 {[%clk 0:02:52]} 12... Nc6
{[%clk 0:02:45.7]} 13. O-O {[%clk 0:02:47.6]} 13... Rc8 {[%clk 0:02:40]} 14. c3
{[%clk 0:02:42.3]} 14... Na5 {[%clk 0:02:38.4]} 15. Ba2 {[%clk 0:02:41.5]} 15...
Bxd5 {[%clk 0:02:19.2]} 16. Bxd5 {[%clk 0:02:39.2]} 16... b6 {[%clk 0:02:18.3]}
17. Qd3 {[%clk 0:02:37.3]} 17... Qc7 {[%clk 0:01:52.5]} 18. Qxa6 {[%clk
0:02:30.5]} 18... Qc5 {[%clk 0:01:38.7]} 19. b4 {[%clk 0:02:24.5]} 19... Qxc3
{[%clk 0:01:35.4]} 20. bxa5 {[%clk 0:02:24.5]} 20... bxa5 {[%clk 0:01:35.2]} 21.
h3 {[%clk 0:02:17.5]} 21... Qc7 {[%clk 0:01:23.6]} 22. Qb7 {[%clk 0:02:12]}
22... Qxb7 {[%clk 0:01:21.4]} 23. Bxb7 {[%clk 0:02:12.9]} 23... Rc4 {[%clk
0:01:21]} 24. Rfc1 {[%clk 0:02:10.9]} 24... Rb4 {[%clk 0:01:20.4]} 25. Rc7
{[%clk 0:02:09.2]} 25... Bf6 {[%clk 0:01:18.1]} 26. Bd5 {[%clk 0:02:08]} 26...
g6 {[%clk 0:01:14.2]} 27. Rac1 {[%clk 0:02:04.6]} 27... Rxa4 {[%clk 0:01:12.9]}
28. Rxf7 {[%clk 0:02:04.2]} 28... Rxf7 {[%clk 0:00:56.1]} 29. Rc7 {[%clk
0:02:04.7]} 29... Ra1+ {[%clk 0:00:54.9]} 30. Kh2 {[%clk 0:02:04.4]} 30... Rd1
{[%clk 0:00:54.3]} 31. Bxf7+ {[%clk 0:02:03.5]} 31... Kf8 {[%clk 0:00:52.2]} 32.
Bd5 {[%clk 0:02:03.7]} 32... Bd8 {[%clk 0:00:35.2]} 33. Rxh7 {[%clk 0:02:00]}
33... a4 {[%clk 0:00:33]} 34. Ra7 {[%clk 0:01:59.5]} 34... Bb6 {[%clk
0:00:24.7]} 35. Rxa4 {[%clk 0:01:57]} 35... Bxf2 {[%clk 0:00:24.6]} 36. h4
{[%clk 0:01:54.2]} 36... Rb1 {[%clk 0:00:17.7]} 37. Rc4 {[%clk 0:01:44.8]} 37...
Be3 {[%clk 0:00:16.2]} 38. Rc7 {[%clk 0:01:42.8]} 38... Bf4+ {[%clk 0:00:15.8]}
39. Kh3 {[%clk 0:01:42.7]} 39... Rh1+ {[%clk 0:00:14.7]} 40. Kg4 {[%clk
0:01:42.7]} 40... Rb1 {[%clk 0:00:13.4]} 41. Ng5 {[%clk 0:01:38.3]} 41... Rb2
{[%clk 0:00:11]} 42. Ne6+ {[%clk 0:01:28.6]} 42... Ke8 {[%clk 0:00:09]} 43. Bc6#
{[%clk 0:01:28.4]} 1-0

[Event "*** Titled Tuesday Blitz"]
[Site "Chess.com"]
[Date "2021.04.20"]
[Round "6"]
[White "RobertoJBM"]
[Black "eldur16"]
[Result "1/2-1/2"]
[WhiteElo "2727"]
[BlackElo "2599"]
[TimeControl "180+1"]
[EndTime "11:04:30 PDT"]
[Termination "Game drawn by repetition"]

1. d4 {[%clk 0:03:00.9]} 1... Nf6 {[%clk 0:02:59.5]} 2. c4 {[%clk 0:03:01]} 2...
g6 {[%clk 0:02:58]} 3. Nc3 {[%clk 0:02:55.1]} 3... Bg7 {[%clk 0:02:58]} 4. e4
{[%clk 0:02:54.8]} 4... d6 {[%clk 0:02:58.2]} 5. f3 {[%clk 0:02:54.2]} 5... O-O
{[%clk 0:02:58]} 6. Be3 {[%clk 0:02:53.8]} 6... e5 {[%clk 0:02:57.7]} 7. d5
{[%clk 0:02:53.4]} 7... c6 {[%clk 0:02:57.7]} 8. Qd2 {[%clk 0:02:53.4]} 8...
cxd5 {[%clk 0:02:57.5]} 9. cxd5 {[%clk 0:02:54.3]} 9... Na6 {[%clk 0:02:54.5]}
10. O-O-O {[%clk 0:02:53.5]} 10... Nc5 {[%clk 0:02:51.4]} 11. Kb1 {[%clk
0:02:53.5]} 11... Bd7 {[%clk 0:02:49.7]} 12. Rc1 {[%clk 0:02:52.9]} 12... a5
{[%clk 0:02:47.1]} 13. Bb5 {[%clk 0:02:44.2]} 13... Qb6 {[%clk 0:02:39.8]} 14.
Bxd7 {[%clk 0:02:37.9]} 14... Nfxd7 {[%clk 0:02:39.1]} 15. Nh3 {[%clk
0:02:28.1]} 15... Qa6 {[%clk 0:02:35.1]} 16. Qe2 {[%clk 0:02:21.7]} 16... Qxe2
{[%clk 0:02:32.5]} 17. Nxe2 {[%clk 0:02:20.4]} 17... b5 {[%clk 0:02:32.4]} 18.
Nf2 {[%clk 0:02:17.1]} 18... f5 {[%clk 0:02:29.7]} 19. Nc3 {[%clk 0:02:13.4]}
19... Rfb8 {[%clk 0:02:20.3]} 20. Rhd1 {[%clk 0:02:08.2]} 20... b4 {[%clk
0:02:18.9]} 21. Ne2 {[%clk 0:02:06.9]} 21... a4 {[%clk 0:02:13.9]} 22. Bxc5
{[%clk 0:01:57]} 22... Nxc5 {[%clk 0:02:13.1]} 23. Rc4 {[%clk 0:01:51.8]} 23...
Rb6 {[%clk 0:02:02.4]} 24. Nd3 {[%clk 0:01:50.1]} 24... Nxd3 {[%clk 0:01:52.6]}
25. Rxd3 {[%clk 0:01:51]} 25... Bh6 {[%clk 0:01:52.4]} 26. Ng3 {[%clk
0:01:38.1]} 26... Bf4 {[%clk 0:01:46.9]} 27. exf5 {[%clk 0:01:33.4]} 27... Bxg3
{[%clk 0:01:46.5]} 28. hxg3 {[%clk 0:01:34.3]} 28... gxf5 {[%clk 0:01:46.6]} 29.
g4 {[%clk 0:01:34]} 29... f4 {[%clk 0:01:40.7]} 30. Rc6 {[%clk 0:01:23.5]} 30...
Raa6 {[%clk 0:01:37.7]} 31. Rc7 {[%clk 0:01:18.2]} 31... Ra5 {[%clk 0:01:22.9]}
32. Rd1 {[%clk 0:01:16.5]} 32... Rbb5 {[%clk 0:01:21.4]} 33. Rh1 {[%clk
0:01:05.2]} 33... Rxd5 {[%clk 0:01:17.8]} 34. Rhxh7 {[%clk 0:01:03.9]} 34... b3
{[%clk 0:01:15.1]} 35. Rhg7+ {[%clk 0:00:27.8]} 35... Kf8 {[%clk 0:01:13.4]} 36.
Rgf7+ {[%clk 0:00:25.7]} 36... Kg8 {[%clk 0:01:13]} 37. Rg7+ {[%clk 0:00:25.7]}
37... Kf8 {[%clk 0:01:13.1]} 38. Rgf7+ {[%clk 0:00:25.8]} 38... Kg8 {[%clk
0:01:13.2]} 39. Rg7+ {[%clk 0:00:19.9]} 1/2-1/2